[Event "Late-Titled-Tuesday-Blitz-October-17-2023"]
[Site "Chess.com"]
[Date "2023.10.17"]
[Round "6"]
[White "Alimpic"]
[Black "Makswolf200817"]
[Result "1-0"]
[WhiteElo "2514"]
[BlackElo "2663"]
[TimeControl "180+1"]
[EndTime "15:07:14 PDT"]
[Termination "Alimpic won on time"]

1. Nf3 {[%clk 0:03:00]} 1... Nf6 {[%clk 0:02:57.2]} 2. g3 {[%clk 0:02:59.7]}
2... e6 {[%clk 0:02:50.9]} 3. Bg2 {[%clk 0:02:58.8]} 3... b5 {[%clk 0:02:51.4]}
4. O-O {[%clk 0:02:41.3]} 4... Bb7 {[%clk 0:02:51.2]} 5. d4 {[%clk 0:02:40.4]}
5... c5 {[%clk 0:02:47.4]} 6. c3 {[%clk 0:02:39.8]} 6... Be7 {[%clk 0:02:43.6]}
7. Bg5 {[%clk 0:02:39.4]} 7... d6 {[%clk 0:02:40.3]} 8. e3 {[%clk 0:02:37.3]}
8... Nbd7 {[%clk 0:02:39.8]} 9. Nbd2 {[%clk 0:02:37.1]} 9... O-O {[%clk
0:02:39.6]} 10. Re1 {[%clk 0:02:35.9]} 10... h6 {[%clk 0:02:38.1]} 11. Bxf6
{[%clk 0:02:35.4]} 11... Nxf6 {[%clk 0:02:38.5]} 12. Qe2 {[%clk 0:02:25]} 12...
Qb6 {[%clk 0:02:37.7]} 13. e4 {[%clk 0:02:18.2]} 13... Rfd8 {[%clk 0:02:33]} 14.
Rad1 {[%clk 0:02:17.6]} 14... a5 {[%clk 0:02:16.8]} 15. a3 {[%clk 0:02:15.6]}
15... b4 {[%clk 0:02:16.1]} 16. axb4 {[%clk 0:02:15.8]} 16... axb4 {[%clk
0:02:16.1]} 17. Nc4 {[%clk 0:01:54.7]} 17... Qb5 {[%clk 0:02:10.2]} 18. Nxd6
{[%clk 0:01:50.1]} 18... Qxe2 {[%clk 0:02:06.8]} 19. Rxe2 {[%clk 0:01:51]} 19...
Bxd6 {[%clk 0:01:34.6]} 20. e5 {[%clk 0:01:50.2]} 20... Be7 {[%clk 0:01:32.1]}
21. exf6 {[%clk 0:01:45.7]} 21... Bxf6 {[%clk 0:01:33]} 22. Red2 {[%clk
0:01:37.1]} 22... c4 {[%clk 0:01:15.9]} 23. cxb4 {[%clk 0:01:28.1]} 23... Ra4
{[%clk 0:01:14.7]} 24. Ne5 {[%clk 0:01:22.7]} 24... Bxg2 {[%clk 0:01:01.7]} 25.
Kxg2 {[%clk 0:01:16.1]} 25... Bxe5 {[%clk 0:00:49.8]} 26. dxe5 {[%clk 0:01:17]}
26... Rxd2 {[%clk 0:00:49.2]} 27. Rxd2 {[%clk 0:01:17.9]} 27... Rxb4 {[%clk
0:00:49.8]} 28. Rd8+ {[%clk 0:01:10.9]} 28... Kh7 {[%clk 0:00:49.9]} 29. Rc8
{[%clk 0:01:10.8]} 29... Kg6 {[%clk 0:00:48.7]} 30. Rc7 {[%clk 0:01:03.8]} 30...
h5 {[%clk 0:00:43.2]} 31. h4 {[%clk 0:01:02.9]} 31... f6 {[%clk 0:00:21.4]} 32.
exf6 {[%clk 0:01:01.1]} 32... gxf6 {[%clk 0:00:22.3]} 33. Kf3 {[%clk 0:00:55.5]}
33... Kf5 {[%clk 0:00:21.1]} 34. Rc5+ {[%clk 0:00:50.1]} 34... e5 {[%clk
0:00:21.5]} 35. Rc6 {[%clk 0:00:44.3]} 35... e4+ {[%clk 0:00:10.6]} 36. Kg2
{[%clk 0:00:36.3]} 36... Ke5 {[%clk 0:00:10.9]} 37. Kf1 {[%clk 0:00:23.9]} 37...
Kd4 {[%clk 0:00:04.8]} 38. Rd6+ {[%clk 0:00:24.1]} 38... Ke5 {[%clk 0:00:04.7]}
39. Rd2 {[%clk 0:00:21.6]} 39... Rb3 {[%clk 0:00:03.4]} 40. Ke2 {[%clk
0:00:20.1]} 40... f5 {[%clk 0:00:01.8]} 41. Rc2 {[%clk 0:00:18.2]} 41... Kd4
{[%clk 0:00:01.5]} 42. Rd2+ {[%clk 0:00:18.3]} 42... Ke5 {[%clk 0:00:01.9]} 43.
Rc2 {[%clk 0:00:18.4]} 43... Kd4 {[%clk 0:00:01.7]} 44. Rd2+ {[%clk 0:00:19]}
44... Rd3 {[%clk 0:00:02]} 45. Rc2 {[%clk 0:00:17.2]} 45... Ke5 {[%clk
0:00:01.9]} 46. Rxc4 {[%clk 0:00:16.6]} 46... Rb3 {[%clk 0:00:01.9]} 47. Rc5+
{[%clk 0:00:15.8]} 47... Kd4 {[%clk 0:00:02]} 48. Rxf5 {[%clk 0:00:15.5]} 48...
Rxb2+ {[%clk 0:00:02.6]} 49. Kf1 {[%clk 0:00:15.9]} 49... e3 {[%clk 0:00:03.1]}
50. fxe3+ {[%clk 0:00:13.4]} 50... Kxe3 {[%clk 0:00:04]} 51. Kg1 {[%clk
0:00:09.4]} 51... Rb1+ {[%clk 0:00:02.4]} 52. Kg2 {[%clk 0:00:09.6]} 52... Rb2+
{[%clk 0:00:02.6]} 53. Kh3 {[%clk 0:00:09.6]} 53... Rb5 {[%clk 0:00:01.3]} 54.
Rxb5 {[%clk 0:00:09.4]} 1-0

[Event "Late-Titled-Tuesday-Blitz-October-17-2023"]
[Site "Chess.com"]
[Date "2023.10.17"]
[Round "6"]
[White "lamomiajunior"]
[Black "AradNazari"]
[Result "0-1"]
[WhiteElo "2742"]
[BlackElo "2907"]
[TimeControl "180+1"]
[EndTime "15:07:15 PDT"]
[Termination "AradNazari won on time"]

1. d4 {[%clk 0:03:00.9]} 1... Nf6 {[%clk 0:03:00.3]} 2. c4 {[%clk 0:03:01.5]}
2... g6 {[%clk 0:03:00.8]} 3. Nc3 {[%clk 0:03:02.2]} 3... d5 {[%clk 0:03:01.4]}
4. Nf3 {[%clk 0:03:02.9]} 4... Bg7 {[%clk 0:03:01.7]} 5. h4 {[%clk 0:03:03.7]}
5... dxc4 {[%clk 0:03:01.6]} 6. e4 {[%clk 0:03:04]} 6... c5 {[%clk 0:03:02.2]}
7. d5 {[%clk 0:03:04.7]} 7... b5 {[%clk 0:03:02.5]} 8. h5 {[%clk 0:03:05.1]}
8... O-O {[%clk 0:03:03.2]} 9. hxg6 {[%clk 0:03:05.4]} 9... fxg6 {[%clk
0:03:03.9]} 10. d6 {[%clk 0:03:04.3]} 10... e6 {[%clk 0:03:03.5]} 11. e5 {[%clk
0:03:00.6]} 11... Ng4 {[%clk 0:03:00.9]} 12. Rxh7 {[%clk 0:02:54.6]} 12... Rf5
{[%clk 0:02:59.5]} 13. Rh1 {[%clk 0:01:59.4]} 13... Nc6 {[%clk 0:02:55.5]} 14.
Be2 {[%clk 0:01:50.9]} 14... Bb7 {[%clk 0:02:24.9]} 15. Bg5 {[%clk 0:01:38.4]}
15... Qf8 {[%clk 0:01:57.6]} 16. d7 {[%clk 0:01:29.6]} 16... Nxf2 {[%clk
0:01:57.8]} 17. Kxf2 {[%clk 0:01:18.7]} 17... Rxg5 {[%clk 0:01:57.4]} 18. Qd6
{[%clk 0:01:05.6]} 18... Qxd6 {[%clk 0:01:31.4]} 19. exd6 {[%clk 0:01:05.9]}
19... Rf5 {[%clk 0:01:31.8]} 20. Nxb5 {[%clk 0:01:04.6]} 20... Nd4 {[%clk
0:01:24.2]} 21. Bxc4 {[%clk 0:00:54.5]} 21... Bxf3 {[%clk 0:01:13]} 22. gxf3
{[%clk 0:00:53.5]} 22... Rd8 {[%clk 0:01:09.2]} 23. Rae1 {[%clk 0:00:20.5]}
23... Kf7 {[%clk 0:01:06]} 24. Rh7 {[%clk 0:00:18.1]} 24... Rxf3+ {[%clk
0:00:53]} 25. Kg2 {[%clk 0:00:18.3]} 25... Rf6 {[%clk 0:00:53.6]} 26. Nxd4
{[%clk 0:00:07.1]} 26... cxd4 {[%clk 0:00:54.5]} 27. Rxe6 {[%clk 0:00:07]} 27...
Rxe6 {[%clk 0:00:52]} 28. Bxe6+ {[%clk 0:00:07.9]} 28... Kf6 {[%clk 0:00:23.4]}
29. Kf3 {[%clk 0:00:08.3]} 29... Bf8 {[%clk 0:00:18.5]} 30. Bg4 {[%clk
0:00:07.7]} 30... Bxd6 {[%clk 0:00:16.2]} 31. Ke4 {[%clk 0:00:08.4]} 31... Bc5
{[%clk 0:00:16.8]} 32. a3 {[%clk 0:00:08.2]} 32... Bb6 {[%clk 0:00:15.8]} 33.
Rh1 {[%clk 0:00:08.1]} 33... Ke7 {[%clk 0:00:14.7]} 34. Kd5 {[%clk 0:00:08.8]}
34... Rf8 {[%clk 0:00:10.6]} 35. Re1+ {[%clk 0:00:09]} 35... Kd8 {[%clk
0:00:10.7]} 36. Rc1 {[%clk 0:00:09.9]} 36... Ke7 {[%clk 0:00:06.5]} 37. Re1+
{[%clk 0:00:09.8]} 37... Kd8 {[%clk 0:00:06.4]} 38. Rc1 {[%clk 0:00:10.3]} 38...
Bc7 {[%clk 0:00:06.7]} 39. b4 {[%clk 0:00:08.8]} 39... Rf4 {[%clk 0:00:05.4]}
40. Be6 {[%clk 0:00:09.1]} 40... d3 {[%clk 0:00:05.1]} 41. Rd1 {[%clk
0:00:09.7]} 41... Rf3 {[%clk 0:00:04.8]} 42. Ke4 {[%clk 0:00:09.3]} 42... Rg3
{[%clk 0:00:03.6]} 43. Rf1 {[%clk 0:00:05.5]} 43... Ke7 {[%clk 0:00:03.1]} 44.
Bc4 {[%clk 0:00:03.7]} 44... d2 {[%clk 0:00:03.5]} 45. Rd1 {[%clk 0:00:03.7]}
45... Rc3 {[%clk 0:00:03.5]} 46. Bd3 {[%clk 0:00:03.1]} 46... Rxa3 {[%clk
0:00:03.6]} 47. Rxd2 {[%clk 0:00:03.1]} 47... Kxd7 {[%clk 0:00:04.3]} 48. Kd5
{[%clk 0:00:03.6]} 48... Bf4 {[%clk 0:00:04.1]} 49. Rd1 {[%clk 0:00:03.8]} 49...
g5 {[%clk 0:00:04.6]} 50. Bf5+ {[%clk 0:00:03.1]} 50... Kc7 {[%clk 0:00:05.2]}
51. Bd3 {[%clk 0:00:02.8]} 51... Kb6 {[%clk 0:00:05.6]} 52. Re1 {[%clk
0:00:02.3]} 52... Rxd3+ {[%clk 0:00:05.7]} 0-1

[Event "Late-Titled-Tuesday-Blitz-October-17-2023"]
[Site "Chess.com"]
[Date "2023.10.17"]
[Round "6"]
[White "TimGrutter03"]
[Black "Mariia89"]
[Result "0-1"]
[WhiteElo "2525"]
[BlackElo "2129"]
[TimeControl "180+1"]
[EndTime "15:07:18 PDT"]
[Termination "Mariia89 won on time"]

1. b3 {[%clk 0:02:59.8]} 1... c5 {[%clk 0:03:00]} 2. g3 {[%clk 0:03:00.2]} 2...
Nc6 {[%clk 0:03:00.4]} 3. Bg2 {[%clk 0:03:00.3]} 3... Nf6 {[%clk 0:03:01.3]} 4.
Bb2 {[%clk 0:03:00.6]} 4... d5 {[%clk 0:03:01.7]} 5. e3 {[%clk 0:03:01]} 5... e5
{[%clk 0:03:01.8]} 6. d3 {[%clk 0:03:01.6]} 6... Be7 {[%clk 0:03:02]} 7. Ne2
{[%clk 0:03:02.2]} 7... O-O {[%clk 0:03:02.7]} 8. Nd2 {[%clk 0:03:02.7]} 8...
Re8 {[%clk 0:03:03.2]} 9. O-O {[%clk 0:03:03.2]} 9... Bf8 {[%clk 0:03:04]} 10.
a3 {[%clk 0:03:01.6]} 10... Rb8 {[%clk 0:03:00.6]} 11. c4 {[%clk 0:02:58]} 11...
d4 {[%clk 0:02:57.1]} 12. e4 {[%clk 0:02:57.3]} 12... a6 {[%clk 0:02:46.1]} 13.
h3 {[%clk 0:02:50.6]} 13... b5 {[%clk 0:02:46]} 14. Kh2 {[%clk 0:02:47.7]} 14...
Na5 {[%clk 0:02:27.4]} 15. Rb1 {[%clk 0:02:37.3]} 15... bxc4 {[%clk 0:02:19.6]}
16. bxc4 {[%clk 0:02:38.2]} 16... Bd7 {[%clk 0:02:16.5]} 17. f4 {[%clk
0:02:33.5]} 17... Qc7 {[%clk 0:02:12.6]} 18. f5 {[%clk 0:02:30.2]} 18... Rb6
{[%clk 0:01:57]} 19. Qc2 {[%clk 0:02:20.9]} 19... Reb8 {[%clk 0:01:55.1]} 20.
Ba1 {[%clk 0:02:19.6]} 20... Bc6 {[%clk 0:01:42.1]} 21. g4 {[%clk 0:02:17.6]}
21... Qd7 {[%clk 0:01:40.5]} 22. g5 {[%clk 0:02:14.2]} 22... Nh5 {[%clk
0:01:40.5]} 23. Bf3 {[%clk 0:02:13.7]} 23... Nf4 {[%clk 0:01:39.8]} 24. Nxf4
{[%clk 0:02:13.1]} 24... exf4 {[%clk 0:01:39.6]} 25. Rxb6 {[%clk 0:01:59.9]}
25... Rxb6 {[%clk 0:01:39.3]} 26. Rb1 {[%clk 0:01:59.9]} 26... Ba4 {[%clk
0:01:26.7]} 27. Qc1 {[%clk 0:01:53.1]} 27... Nb3 {[%clk 0:01:06.7]} 28. Nxb3
{[%clk 0:01:41.5]} 28... Rxb3 {[%clk 0:01:04.4]} 29. Rxb3 {[%clk 0:01:37.6]}
29... Bxb3 {[%clk 0:01:04.9]} 30. Qxf4 {[%clk 0:01:29.4]} 30... Bc2 {[%clk
0:00:56.8]} 31. Be2 {[%clk 0:01:18.5]} 31... Qb7 {[%clk 0:00:45.1]} 32. Qc1
{[%clk 0:01:10]} 32... Bd6+ {[%clk 0:00:40.7]} 33. Kg2 {[%clk 0:01:09.9]} 33...
Ba4 {[%clk 0:00:37]} 34. Qb2 {[%clk 0:01:07.7]} 34... Qe7 {[%clk 0:00:28.7]} 35.
Qc1 {[%clk 0:00:36]} 35... Qe5 {[%clk 0:00:28.2]} 36. Qh1 {[%clk 0:00:24.1]}
36... Qg3+ {[%clk 0:00:25.5]} 37. Kf1 {[%clk 0:00:24.3]} 37... Qxg5 {[%clk
0:00:22.4]} 38. Bb2 {[%clk 0:00:18.6]} 38... Qf4+ {[%clk 0:00:16.6]} 39. Qf3
{[%clk 0:00:15.5]} 39... Qd2 {[%clk 0:00:13.4]} 40. e5 {[%clk 0:00:15.2]} 40...
Bf8 {[%clk 0:00:08.7]} 41. e6 {[%clk 0:00:09.9]} 41... Qxb2 {[%clk 0:00:06.7]}
42. exf7+ {[%clk 0:00:06.5]} 42... Kxf7 {[%clk 0:00:06.7]} 43. Qd5+ {[%clk
0:00:06.5]} 43... Kf6 {[%clk 0:00:05.4]} 44. Qe6+ {[%clk 0:00:04]} 44... Kg5
{[%clk 0:00:05.9]} 45. Qe4 {[%clk 0:00:01.2]} 45... Qc1+ {[%clk 0:00:06.2]} 46.
Kg2 {[%clk 0:00:01.7]} 46... Qf4 {[%clk 0:00:06.1]} 47. Qe8 {[%clk 0:00:01.4]}
47... Bd6 {[%clk 0:00:05.7]} 0-1

[Event "Late-Titled-Tuesday-Blitz-October-17-2023"]
[Site "Chess.com"]
[Date "2023.10.17"]
[Round "6"]
[White "NormWeinstein"]
[Black "biostatistician"]
[Result "1/2-1/2"]
[WhiteElo "2416"]
[BlackElo "2583"]
[TimeControl "180+1"]
[EndTime "15:07:24 PDT"]
[Termination "Game drawn by repetition"]

1. e4 {[%clk 0:02:59.6]} 1... e5 {[%clk 0:02:59.7]} 2. Nf3 {[%clk 0:02:59.7]}
2... Nc6 {[%clk 0:03:00.6]} 3. Bb5 {[%clk 0:02:59.5]} 3... Nf6 {[%clk
0:03:00.5]} 4. O-O {[%clk 0:02:58.9]} 4... Nxe4 {[%clk 0:03:00.1]} 5. d4 {[%clk
0:02:58.9]} 5... Nd6 {[%clk 0:03:00]} 6. dxe5 {[%clk 0:02:59.1]} 6... Nxb5
{[%clk 0:02:57.8]} 7. a4 {[%clk 0:02:59.1]} 7... d6 {[%clk 0:02:56.9]} 8. axb5
{[%clk 0:02:57.8]} 8... Nxe5 {[%clk 0:02:57]} 9. Re1 {[%clk 0:02:58]} 9... Be7
{[%clk 0:02:54.6]} 10. Nxe5 {[%clk 0:02:57.7]} 10... dxe5 {[%clk 0:02:55.5]} 11.
Qxd8+ {[%clk 0:02:57.3]} 11... Kxd8 {[%clk 0:02:56.4]} 12. Rxe5 {[%clk
0:02:57.1]} 12... Bd6 {[%clk 0:02:56.4]} 13. Re2 {[%clk 0:02:50]} 13... b6
{[%clk 0:02:38.3]} 14. Nc3 {[%clk 0:02:42.2]} 14... Re8 {[%clk 0:02:33.8]} 15.
Be3 {[%clk 0:02:35.4]} 15... a6 {[%clk 0:02:32]} 16. bxa6 {[%clk 0:02:26.1]}
16... Rxa6 {[%clk 0:02:30.4]} 17. Rd1 {[%clk 0:02:13.3]} 17... Bd7 {[%clk
0:02:23.6]} 18. Red2 {[%clk 0:02:10.3]} 18... Kc8 {[%clk 0:01:50.1]} 19. h3
{[%clk 0:02:07.9]} 19... Bc6 {[%clk 0:01:46.5]} 20. Nd5 {[%clk 0:02:03.6]} 20...
Kb7 {[%clk 0:01:43]} 21. c4 {[%clk 0:01:56.4]} 21... Re4 {[%clk 0:01:37.4]} 22.
b3 {[%clk 0:01:52.6]} 22... Ra3 {[%clk 0:01:37.4]} 23. Rb1 {[%clk 0:01:23.7]}
23... f5 {[%clk 0:01:25.1]} 24. g3 {[%clk 0:01:04.1]} 24... h5 {[%clk
0:01:18.7]} 25. Bf4 {[%clk 0:00:58.1]} 25... Bxd5 {[%clk 0:01:07.4]} 26. Bxd6
{[%clk 0:00:55.9]} 26... Rxb3 {[%clk 0:01:04.9]} 27. Rc1 {[%clk 0:00:43.8]}
27... Rxc4 {[%clk 0:00:57.9]} 28. Rxc4 {[%clk 0:00:42.7]} 28... Bxc4 {[%clk
0:00:58.8]} 29. Be5 {[%clk 0:00:41.8]} 29... Rd3 {[%clk 0:00:43.1]} 30. Rxd3
{[%clk 0:00:40.4]} 30... Bxd3 {[%clk 0:00:43.1]} 31. Bxg7 {[%clk 0:00:40.5]}
31... c5 {[%clk 0:00:43.6]} 32. f3 {[%clk 0:00:39.7]} 32... Kc6 {[%clk
0:00:42.7]} 33. Kf2 {[%clk 0:00:39.7]} 33... Kd5 {[%clk 0:00:42.2]} 34. Ke3
{[%clk 0:00:39.8]} 34... Bf1 {[%clk 0:00:42.2]} 35. g4 {[%clk 0:00:37]} 35...
hxg4 {[%clk 0:00:40.7]} 36. hxg4 {[%clk 0:00:36.9]} 36... fxg4 {[%clk
0:00:41.6]} 37. fxg4 {[%clk 0:00:36.8]} 37... Bh3 {[%clk 0:00:39.5]} 38. g5
{[%clk 0:00:36.6]} 38... Bf5 {[%clk 0:00:39.8]} 39. Bf8 {[%clk 0:00:36.1]} 39...
Kc4 {[%clk 0:00:34]} 40. Kd2 {[%clk 0:00:36.3]} 40... b5 {[%clk 0:00:33.8]} 41.
Kc1 {[%clk 0:00:35.9]} 41... b4 {[%clk 0:00:30.9]} 42. Kb2 {[%clk 0:00:34.8]}
42... Kd4 {[%clk 0:00:27.4]} 43. Bg7+ {[%clk 0:00:33.7]} 43... Kd3 {[%clk
0:00:26.4]} 44. Bf8 {[%clk 0:00:33.4]} 44... Kc4 {[%clk 0:00:26.5]} 45. Be7
{[%clk 0:00:30.9]} 45... Bg6 {[%clk 0:00:26.1]} 46. Bf8 {[%clk 0:00:30.5]} 46...
Kb5 {[%clk 0:00:24.6]} 47. Be7 {[%clk 0:00:29.4]} 47... c4 {[%clk 0:00:24.8]}
48. Bf6 {[%clk 0:00:29.1]} 48... Kc6 {[%clk 0:00:22.9]} 49. Be7 {[%clk
0:00:28.4]} 49... Kb5 {[%clk 0:00:18.4]} 50. Bf6 {[%clk 0:00:27.9]} 50... Bf7
{[%clk 0:00:18.9]} 51. Be5 {[%clk 0:00:27.3]} 51... Kc5 {[%clk 0:00:18.6]} 52.
Bf6 {[%clk 0:00:27.1]} 52... Kd5 {[%clk 0:00:17.1]} 53. Be7 {[%clk 0:00:26.6]}
53... c3+ {[%clk 0:00:14.3]} 54. Kb3 {[%clk 0:00:15.4]} 54... Ke4+ {[%clk
0:00:08.3]} 55. Kc2 {[%clk 0:00:13.2]} 55... b3+ {[%clk 0:00:02]} 56. Kxc3
{[%clk 0:00:12.4]} 56... Kf5 {[%clk 0:00:02.5]} 57. Kb2 {[%clk 0:00:11.5]} 57...
Kg6 {[%clk 0:00:03.4]} 58. Kc3 {[%clk 0:00:11.4]} 58... Be8 {[%clk 0:00:04.3]}
59. Kb2 {[%clk 0:00:11.4]} 59... Bf7 {[%clk 0:00:05.2]} 60. Kc3 {[%clk
0:00:11.5]} 60... Bg8 {[%clk 0:00:06.1]} 61. Kb2 {[%clk 0:00:11.4]} 61... Bf7
{[%clk 0:00:07]} 1/2-1/2

[Event "Late-Titled-Tuesday-Blitz-October-17-2023"]
[Site "Chess.com"]
[Date "2023.10.17"]
[Round "6"]
[White "NateSolon"]
[Black "venturov"]
[Result "0-1"]
[WhiteElo "2606"]
[BlackElo "2464"]
[TimeControl "180+1"]
[EndTime "15:07:32 PDT"]
[Termination "venturov won by checkmate"]

1. d4 {[%clk 0:03:00.9]} 1... Nf6 {[%clk 0:02:59.6]} 2. Bf4 {[%clk 0:03:00.3]}
2... c5 {[%clk 0:02:53.8]} 3. d5 {[%clk 0:03:00]} 3... d6 {[%clk 0:02:53.5]} 4.
Nc3 {[%clk 0:02:57.3]} 4... g6 {[%clk 0:02:53.7]} 5. e4 {[%clk 0:02:57]} 5...
Bg7 {[%clk 0:02:53.8]} 6. Nf3 {[%clk 0:02:54.4]} 6... Bg4 {[%clk 0:02:52.4]} 7.
h3 {[%clk 0:02:49.5]} 7... Bxf3 {[%clk 0:02:52.3]} 8. Qxf3 {[%clk 0:02:50.4]}
8... Nbd7 {[%clk 0:02:51.4]} 9. Qd1 {[%clk 0:02:44.5]} 9... O-O {[%clk
0:02:50.6]} 10. Be2 {[%clk 0:02:44.7]} 10... Rb8 {[%clk 0:02:24.5]} 11. a4
{[%clk 0:02:44]} 11... a6 {[%clk 0:02:25]} 12. O-O {[%clk 0:02:39.1]} 12... b5
{[%clk 0:02:25.4]} 13. axb5 {[%clk 0:02:39.8]} 13... axb5 {[%clk 0:02:26.3]} 14.
Nxb5 {[%clk 0:02:37.3]} 14... Nxe4 {[%clk 0:02:24.2]} 15. c3 {[%clk 0:02:37.6]}
15... Nef6 {[%clk 0:02:08.7]} 16. Re1 {[%clk 0:02:19.9]} 16... Nb6 {[%clk
0:02:04.8]} 17. c4 {[%clk 0:02:07.9]} 17... Qd7 {[%clk 0:02:00.2]} 18. Qc2
{[%clk 0:02:01.3]} 18... Ra8 {[%clk 0:01:59.7]} 19. Rxa8 {[%clk 0:01:41]} 19...
Rxa8 {[%clk 0:01:59.9]} 20. Bf1 {[%clk 0:01:41.5]} 20... Ne8 {[%clk 0:01:47.7]}
21. Qe4 {[%clk 0:01:19.2]} 21... Nc8 {[%clk 0:01:46]} 22. b3 {[%clk 0:01:14.5]}
22... Nc7 {[%clk 0:01:45.7]} 23. Nxc7 {[%clk 0:01:14.9]} 23... Qxc7 {[%clk
0:01:46.6]} 24. Bd3 {[%clk 0:01:09.7]} 24... Ra3 {[%clk 0:01:27.6]} 25. Bc2
{[%clk 0:01:09.7]} 25... Qa5 {[%clk 0:01:27.9]} 26. h4 {[%clk 0:01:04.3]} 26...
Ra1 {[%clk 0:01:25.1]} 27. Rxa1 {[%clk 0:01:02.5]} 27... Qxa1+ {[%clk 0:01:26]}
28. Kh2 {[%clk 0:01:02.6]} 28... Be5 {[%clk 0:01:25.1]} 29. g3 {[%clk
0:00:51.6]} 29... Qb2 {[%clk 0:01:19.1]} 30. Be3 {[%clk 0:00:42]} 30... Qc3
{[%clk 0:01:07.5]} 31. Kg2 {[%clk 0:00:38.5]} 31... Nb6 {[%clk 0:01:03.5]} 32.
h5 {[%clk 0:00:25.1]} 32... Nd7 {[%clk 0:01:01.2]} 33. hxg6 {[%clk 0:00:25.5]}
33... hxg6 {[%clk 0:01:00.5]} 34. Bd1 {[%clk 0:00:22.1]} 34... Nf6 {[%clk
0:00:55.4]} 35. Qh4 {[%clk 0:00:22.2]} 35... Bd4 {[%clk 0:00:47.3]} 36. Bxd4
{[%clk 0:00:19.4]} 36... cxd4 {[%clk 0:00:48.2]} 37. Qf4 {[%clk 0:00:16]} 37...
Nd7 {[%clk 0:00:42.1]} 38. Qe4 {[%clk 0:00:14.5]} 38... Ne5 {[%clk 0:00:35.1]}
39. Kf1 {[%clk 0:00:14.9]} 39... d3 {[%clk 0:00:31.5]} 40. f4 {[%clk 0:00:15.2]}
40... Qc1 {[%clk 0:00:19.2]} 41. Qe1 {[%clk 0:00:14.5]} 41... d2 {[%clk
0:00:16.9]} 42. Qe2 {[%clk 0:00:15]} 42... Nd7 {[%clk 0:00:15.5]} 43. Qg4 {[%clk
0:00:13.4]} 43... Nc5 {[%clk 0:00:12.6]} 44. Ke2 {[%clk 0:00:12.8]} 44... Qc3
{[%clk 0:00:10.6]} 45. Qf3 {[%clk 0:00:12.2]} 45... Qd4 {[%clk 0:00:06.9]} 46.
Qe3 {[%clk 0:00:12.5]} 46... Qa1 {[%clk 0:00:01.7]} 47. Qxd2 {[%clk 0:00:12.8]}
47... f5 {[%clk 0:00:01.6]} 48. Qe3 {[%clk 0:00:12.7]} 48... Qf6 {[%clk
0:00:02.2]} 49. Bc2 {[%clk 0:00:12]} 49... Kf8 {[%clk 0:00:02.5]} 50. Kf3 {[%clk
0:00:12.2]} 50... Nd7 {[%clk 0:00:02.9]} 51. Kg2 {[%clk 0:00:09.9]} 51... Qb2
{[%clk 0:00:03.4]} 52. Qf2 {[%clk 0:00:09.1]} 52... Nf6 {[%clk 0:00:03.9]} 53.
Bd1 {[%clk 0:00:08.3]} 53... Qc1 {[%clk 0:00:04]} 54. Bf3 {[%clk 0:00:08.5]}
54... Qc3 {[%clk 0:00:02.7]} 55. Bd1 {[%clk 0:00:07.5]} 55... Ne4 {[%clk
0:00:02.6]} 56. Qf3 {[%clk 0:00:08]} 56... Qd2+ {[%clk 0:00:02.7]} 57. Kh3
{[%clk 0:00:08.1]} 57... Nf2+ {[%clk 0:00:03.1]} 58. Kh4 {[%clk 0:00:08.7]}
58... Nxd1 {[%clk 0:00:02.4]} 59. Kg5 {[%clk 0:00:09.3]} 59... Nf2 {[%clk
0:00:02.4]} 60. Kxg6 {[%clk 0:00:09.4]} 60... Ne4 {[%clk 0:00:02.8]} 61. Kxf5
{[%clk 0:00:09]} 61... Nf6 {[%clk 0:00:01.9]} 62. Kg6 {[%clk 0:00:08.2]} 62...
Qc2+ {[%clk 0:00:01.7]} 63. f5 {[%clk 0:00:08.5]} 63... Qd2 {[%clk 0:00:02.2]}
64. g4 {[%clk 0:00:07.8]} 64... Qh2 {[%clk 0:00:02.9]} 65. g5 {[%clk 0:00:05.9]}
65... Qh7# {[%clk 0:00:03.4]} 0-1